fUST/lending_fUST_20240412
["ID","MTS","AMOUNT","RATE_DAILY","PERIOD"]
[322212589,1712874640604,-505.15384596,0.00027671,2]
[322212590,1712874640613,-1143.843822,0.00027671,2]
[322212591,1712874640623,-11473.00058539,0.00027671,2]
[322212592,1712874640832,-3333.49941461,0.00027671,2]
[322212593,1712874640844,-500.0,0.00027671,2]
[322212594,1712874640854,-400.865789,0.00027671,2]
[322212595,1712874640864,-1184.13,0.00027671,2]
[322212596,1712874640875,-400.865789,0.00027671,2]
[322212597,1712874640884,-500.0,0.00027671,2]
[322212598,1712874640893,-3003.28,0.00027671,2]
[322212599,1712874640903,-500.0,0.00027671,2]
[322212600,1712874640912,-500.0,0.00027671,2]
[322212601,1712874640921,-941.07,0.00027671,2]
[322212602,1712874640931,-705.73,0.00027671,2]
[322212603,1712874640940,-500.0,0.00027671,2]
[322212604,1712874640949,-500.0,0.00027671,2]
[322212605,1712874640958,-500.0,0.00027671,2]
[322212606,1712874640966,-500.0,0.00027671,2]
[322212607,1712874640975,-151.0,0.00027671,2]
[322212608,1712874641063,-500.0,0.00027671,2]
[322212609,1712874641073,-151.0,0.00027671,2]
[322212610,1712874641084,-500.0,0.00027671,2]
[322212611,1712874641093,-2039.16,0.00027671,2]
[322212612,1712874641103,-500.0,0.00027671,2]
[322212613,1712874641113,-1412.3,0.00027671,2]
[322212614,1712874641125,-671.204188,0.00027671,2]
[322212615,1712874641134,-5780.08,0.00027671,2]
[322212616,1712874641144,-671.204188,0.00027671,2]
[322212617,1712874641154,-4683.06,0.00027671,2]
[322212618,1712874641163,-500.0,0.00027671,2]
[322212619,1712874641174,-1319.95,0.00027671,2]
[322212620,1712874641185,-1103.0,0.00027671,2]
[322212621,1712874641196,-500.0,0.00027671,2]
[322212622,1712874641207,-151.0,0.00027671,2]
[322212623,1712874641218,-151.0,0.00027671,2]
[322212624,1712874641228,-606.73,0.00027671,2]
[322212625,1712874641237,-157.288466,0.00027671,2]
[322212626,1712874641246,-1162.96,0.00027671,2]
[322212627,1712874641255,-500.0,0.00027671,2]
[322212628,1712874641264,-393.75733556,0.00027671,2]
[322212629,1712874641273,-598.95,0.00027671,2]
[322212630,1712874641282,-2746.2,0.00027671,2]
[322212631,1712874641291,-11873.43,0.00027671,2]
[322212632,1712874641300,-500.0,0.00027671,2]
[322212633,1712874641309,-500.0,0.00027671,2]
[322212634,1712874641320,-500.0,0.00027671,2]
[322212635,1712874641329,-731.91,0.00027671,2]
[322212636,1712874641338,-151.0,0.00027671,2]
[322212637,1712874641348,-2354.74,0.00027671,2]
[322212638,1712874641358,-1538.81,0.00027671,2]
[322212639,1712874641367,-500.0,0.00027671,2]
[322212640,1712874641377,-1353.31,0.00027671,2]
[322212641,1712874641386,-500.0,0.00027671,2]
[322212642,1712874641397,-764.6,0.00027671,2]
[322212643,1712874641409,-500.0,0.00027671,2]
[322212644,1712874641418,-162.31236307,0.00027756,2]
[322212645,1712874641427,-168.563655,0.000279,2]
[322212646,1712874641438,-185.68184053,0.00027943,2]
[322212647,1712874641449,-1013.12488908,0.00027943,2]
[322212648,1712874641458,-289.80982697,0.00027943,2]
[322212649,1712874641468,-155.0,0.00027943,2]
[322212650,1712874641478,-353.86074834,0.00027943,2]
[322212651,1712874641488,-278.36597163,0.00027943,2]
[322212652,1712874641499,-5292.72891486,0.00027943,2]
[322212653,1712874641509,-259.25777893,0.00027943,2]
[322212654,1712874641519,-155.24484011,0.00027943,2]
[322212655,1712874641529,-473.43587504,0.00027943,2]
[322212656,1712874641539,-2548.40467265,0.00027943,2]
[322212657,1712874641548,-2120.63245232,0.00027943,2]
[322212658,1712874641558,-151.0,0.00027943,2]
[322212659,1712874641569,-281.979524,0.00027943,2]
[322212660,1712874641578,-281.979524,0.00027943,2]
[322212661,1712874641587,-151.0,0.00027943,2]
[322212662,1712874641597,-151.0,0.00027943,2]
[322212663,1712874641608,-151.0,0.00027943,2]
[322212664,1712874641619,-151.0,0.00027943,2]
[322212665,1712874641628,-151.0,0.00027943,2]
[322212666,1712874641639,-151.0,0.00027943,2]
[322212667,1712874641648,-1143.843822,0.00027943,2]
[322212668,1712874641658,-1143.843822,0.00027943,2]
[322212669,1712874641669,-151.0,0.00027943,2]
[322212670,1712874641679,-151.0,0.00027943,2]
[322212671,1712874641688,-671.204188,0.00027943,2]
[322212672,1712874641698,-500.0,0.00027943,2]
[322212673,1712874641707,-671.204188,0.00027943,2]
[322212674,1712874641717,-151.0,0.00027943,2]
[322212675,1712874641727,-151.0,0.00027943,2]
[322212676,1712874641737,-151.0,0.00027943,2]
[322212677,1712874641749,-3396.12359618,0.00027944,2]
[322212678,1712874641760,-1046.06334155,0.00027944,2]
[322212679,1712874641771,-151.0,0.00027944,2]
[322212680,1712874641780,-151.0,0.00027944,2]
[322212681,1712874641789,-151.0,0.00027944,2]
[322212682,1712874641805,-151.0,0.00027944,2]
[322212683,1712874641818,-151.0,0.00027944,2]
[322212684,1712874641830,-151.0,0.00027944,2]
[322212685,1712874641840,-151.0,0.00027944,2]
[322212686,1712874641851,-151.0,0.00027944,2]
[322212687,1712874641861,-151.0,0.00027944,2]
[322212688,1712874641870,-151.0,0.00027944,2]
[322212689,1712874641883,-400.865789,0.00027944,2]
[322212690,1712874641893,-400.865789,0.00027944,2]
[322212691,1712874641903,-284.61768547,0.00027945,2]
[322212692,1712874641912,-501.6139725,0.00027945,2]
[322212693,1712874641922,-500.0,0.00027945,2]
[322212694,1712874641931,-151.0,0.00027945,2]
[322212695,1712874641941,-151.0,0.00027945,2]
[322212696,1712874641960,-151.0,0.00027945,2]
[322212697,1712874641975,-500.0,0.00027945,2]
[322212698,1712874641984,-151.0,0.00027945,2]
[322212699,1712874641994,-151.0,0.00027945,2]
[322212700,1712874642004,-151.0,0.00027945,2]
[322212701,1712874642016,-500.0,0.00027945,2]
[322212702,1712874642027,-500.0,0.00027945,2]
[322212703,1712874642038,-500.0,0.00027945,2]
[322212704,1712874642049,-500.0,0.00027945,2]
[322212705,1712874642062,-500.0,0.00027945,2]
[322212706,1712874642072,-175.73156,0.00027945,2]
[322212707,1712874642082,-151.0,0.00027945,2]
[322212708,1712874642091,-151.0,0.00027945,2]
[322212709,1712874642103,-151.0,0.00027945,2]
[322212710,1712874642114,-151.0,0.00027945,2]
[322212711,1712874642125,-500.0,0.00027945,2]
[322212712,1712874642135,-500.0,0.00027945,2]
[322212713,1712874642146,-759.24,0.00027945,2]
[322212714,1712874642157,-500.0,0.00027945,2]
[322212715,1712874642168,-500.0,0.00027945,2]
[322212716,1712874642178,-500.0,0.00027945,2]
[322212717,1712874642188,-281.979524,0.00027945,2]
[322212718,1712874642198,-281.979524,0.00027945,2]
[322212719,1712874642208,-281.979524,0.00027945,2]
[322212720,1712874642217,-281.979524,0.00027945,2]
[322212721,1712874642227,-500.0,0.00027945,2]
[322212722,1712874642239,-151.0,0.00027945,2]
[322212723,1712874642249,-151.0,0.00027945,2]
[322212724,1712874642260,-151.0,0.00027945,2]
[322212725,1712874642270,-151.0,0.00027945,2]
[322212726,1712874642279,-500.0,0.00027945,2]
[322212727,1712874642289,-534.57,0.00027945,2]
[322212728,1712874642299,-500.0,0.00027945,2]
[322212729,1712874642309,-500.0,0.00027945,2]
[322212730,1712874642320,-500.0,0.00027945,2]
[322212731,1712874642330,-576.57,0.00027945,2]
[322212732,1712874642341,-639.84,0.00027945,2]
[322212733,1712874642353,-500.0,0.00027945,2]
[322212734,1712874642362,-151.0,0.00027945,2]
[322212735,1712874642372,-576.3008286,0.00027945,2]
[322212736,1712874642382,-151.0,0.00027945,2]
[322212737,1712874642393,-1593.61,0.00027945,2]
[322212738,1712874642402,-500.0,0.00027945,2]
[322212739,1712874642412,-725.28,0.00027945,2]
[322212740,1712874642422,-1275.42,0.00027945,2]
[322212741,1712874642433,-500.0,0.00027945,2]
[322212742,1712874642443,-526.01801054,0.00027945,2]
[322212743,1712874642454,-500.0,0.00027945,2]
[322212744,1712874642464,-410.54604089,0.00027945,2]
[322212745,1712874642474,-695.93,0.00027945,2]
[322212746,1712874642485,-500.0,0.00027945,2]
[322212747,1712874642494,-1051.21,0.00027945,2]
[322212748,1712874642504,-500.0,0.00027945,2]
[322212749,1712874642514,-151.0,0.00027945,2]
[322212750,1712874642524,-151.0,0.00027945,2]
[322212751,1712874642534,-151.0,0.00027945,2]
[322212752,1712874642544,-151.0,0.00027945,2]
[322212753,1712874642554,-732.24,0.00027945,2]
[322212754,1712874642565,-500.0,0.00027945,2]
[322212755,1712874642577,-500.0,0.00027945,2]
[322212756,1712874642588,-169.842398,0.00027945,2]
[322212757,1712874642598,-1937.32,0.00027945,2]
[322212758,1712874642607,-3624.96,0.00027945,2]
[322212759,1712874642616,-151.0,0.00027945,2]
[322212760,1712874642626,-151.0,0.00027945,2]
[322212761,1712874642635,-151.0,0.00027945,2]
[322212762,1712874642645,-1495.89,0.00027945,2]
[322212763,1712874642654,-917.8,0.00027945,2]
[322212764,1712874642664,-500.0,0.00027945,2]
[322212765,1712874642673,-507.24262939,0.00027945,2]
[322212766,1712874642682,-1135.46,0.00027945,2]
[322212767,1712874642691,-500.0,0.00027945,2]
[322212768,1712874642701,-500.0,0.00027945,2]
[322212770,1712874642710,-500.0,0.00027945,2]
[322212771,1712874642719,-538.61504777,0.00027945,2]
[322212772,1712874642729,-1143.843822,0.00027945,2]
[322212773,1712874642738,-1143.843822,0.00027945,2]
[322212774,1712874642747,-1143.843822,0.00027945,2]
[322212775,1712874642757,-14806.5,0.00027945,2]
[322212776,1712874642766,-1143.843822,0.00027945,2]
[322212777,1712874642776,-1143.843822,0.00027945,2]
[322212778,1712874642786,-1143.843822,0.00027945,2]
[322212779,1712874642797,-500.0,0.00027945,2]
[322212780,1712874642807,-1184.13,0.00027945,2]
[322212781,1712874642817,-400.865789,0.00027945,2]
[322212782,1712874642826,-400.865789,0.00027945,2]
[322212783,1712874642836,-400.865789,0.00027945,2]
[322212784,1712874642846,-400.865789,0.00027945,2]
[322212785,1712874642855,-500.0,0.00027945,2]
[322212786,1712874642864,-3003.28,0.00027945,2]
[322212787,1712874642875,-500.0,0.00027945,2]
[322212788,1712874642884,-500.0,0.00027945,2]
[322212789,1712874642893,-941.07,0.00027945,2]
[322212790,1712874642902,-705.73,0.00027945,2]
[322212791,1712874642911,-500.0,0.00027945,2]
[322212792,1712874642920,-500.0,0.00027945,2]
[322212793,1712874642929,-500.0,0.00027945,2]
[322212794,1712874642938,-500.0,0.00027945,2]
[322212797,1712874642949,-500.0,0.00027945,2]
[322212798,1712874643052,-151.0,0.00027945,2]
[322212799,1712874643062,-2039.16,0.00027945,2]
[322212800,1712874643074,-500.0,0.00027945,2]
[322212801,1712874643082,-1412.3,0.00027945,2]
[322212802,1712874643091,-671.204188,0.00027945,2]
[322212803,1712874643101,-5780.08,0.00027945,2]
[322212804,1712874643110,-671.204188,0.00027945,2]
[322212805,1712874643119,-671.204188,0.00027945,2]
[322212806,1712874643130,-671.204188,0.00027945,2]
[322212807,1712874643140,-671.204188,0.00027945,2]
[322212809,1712874643151,-671.204188,0.00027945,2]
[322212810,1712874643160,-4683.06,0.00027945,2]
[322212811,1712874643170,-500.0,0.00027945,2]
[322212812,1712874643180,-1319.95,0.00027945,2]
[322212813,1712874643189,-1103.0,0.00027945,2]
[322212814,1712874643199,-500.0,0.00027945,2]
[322212815,1712874643209,-151.0,0.00027945,2]
[322212816,1712874643220,-151.0,0.00027945,2]
[322212817,1712874643230,-151.0,0.00027945,2]
[322212818,1712874643240,-151.0,0.00027945,2]
[322212819,1712874643251,-151.0,0.00027945,2]
[322212820,1712874643262,-151.0,0.00027945,2]
[322212821,1712874643271,-1162.96,0.00027945,2]
[322212822,1712874643281,-500.0,0.00027945,2]
[322212823,1712874643291,-598.95,0.00027945,2]
[322212824,1712874643302,-2746.2,0.00027945,2]
[322212825,1712874643311,-11873.43,0.00027945,2]
[322212826,1712874643320,-500.0,0.00027945,2]
[322212827,1712874643331,-504.04534861,0.00027945,2]
[322212828,1712874643341,-500.0,0.00027945,2]
[322212829,1712874643350,-731.91,0.00027945,2]
[322212830,1712874643359,-151.0,0.00027945,2]
[322212831,1712874643369,-151.0,0.00027945,2]
[322212832,1712874643378,-2354.74,0.00027945,2]
[322212833,1712874643389,-151.0,0.00027945,2]
[322212834,1712874643401,-1538.81,0.00027945,2]
[322212835,1712874643411,-408.24663128,0.00027945,2]
[322212836,1712874643422,-446.48138501,0.00027945,2]
[322212838,1712874643674,-666.8807284,0.00027945,2]
[322212850,1712874651308,155.68204879,0.00024216,2]
[322212851,1712874660158,1097.63828621,0.000255,4]
[322212857,1712875636181,-193.09908054,0.00025385,2]
[322212858,1712875636209,-242.86748276,0.00025386,2]
[322212859,1712875636234,-154.82968734,0.00025387,2]
[322212860,1712875636260,-3719.84092639,0.00025399,2]
[322212861,1712875636286,-163.33785815,0.000254,2]
[322212862,1712875636311,-284.61768547,0.000255,2]
[322212863,1712875636339,-2.44756231,0.00025789,2]
[322212864,1712875649145,-203.39419359,0.00025789,2]
[322212865,1712875768093,-193.09908054,0.00025788,2]
[322212866,1712875768113,-4389.5866775,0.00025789,2]
[322212867,1712875768133,-498.17477954,0.00025845,2]
[322212868,1712875768154,-1123.64382192,0.00026381,2]
[322212869,1712875768174,-163.33785815,0.0002676,2]
[322212870,1712875812474,392.68887813,0.00024281,2]
[322212871,1712875828405,2368.53138688,0.0002676,2]
[322212967,1712875838933,-954.16381956,0.00027295,3]
[322212969,1712875838943,-158.57133421,0.00027297,2]
[322212971,1712875838952,-4796.37965269,0.00027394,2]
[322212973,1712875838962,-300.0,0.00027394,2]
[322212975,1712875838971,-300.0,0.00027394,2]
[322212977,1712875838980,-289.80982697,0.00027395,2]
[322212979,1712875838989,-5292.72891486,0.00027395,2]
[322212981,1712875838999,-473.43587504,0.00027395,2]
[322212983,1712875839008,-155.0,0.00027395,2]
[322212985,1712875839017,-1046.06334155,0.00027395,2]
[322212987,1712875839028,-353.86074834,0.00027395,2]
[322212989,1712875839038,-2548.40467265,0.00027395,2]
[322212991,1712875839047,-1013.12488908,0.00027395,2]
[322212992,1712875839058,-185.68184053,0.00027395,2]
[322212994,1712875839067,-2120.63245232,0.00027395,2]
[322212996,1712875839077,-278.36597163,0.00027395,2]
[322212998,1712875839087,-155.48493417,0.00027395,2]
[322213000,1712875839098,-242.61659758,0.00027395,2]
[322213002,1712875839107,-1033.60624093,0.00027395,2]
[322213004,1712875839116,-298.95072335,0.00027395,2]
[322213005,1712875839126,-379.20858322,0.00027395,2]
[322213006,1712875839134,-584.67100667,0.00027395,2]
[322213007,1712875839144,-367.52809974,0.00027395,2]
[322213008,1712875839153,-1310.96630797,0.00027395,2]
[322213009,1712875839164,-213.95808583,0.00027395,2]
[322213010,1712875839174,-154.93802479,0.00027396,2]
[322213011,1712875839183,-490.0,0.00027396,2]
[322213012,1712875839192,-490.0,0.00027396,2]
[322213013,1712875839201,-153.60574541,0.00027396,2]
[322213014,1712875839211,-410.89100692,0.00027396,2]
[322213015,1712875839220,-360.85132278,0.00027396,2]
[322213016,1712875839230,-292.35489727,0.00027396,2]
[322213017,1712875839239,-500.0,0.00027397,2]
[322213018,1712875839249,-500.0,0.00027397,2]
[322213019,1712875839258,-500.0,0.00027397,2]
[322213020,1712875839267,-727.6,0.00027397,2]
[322213021,1712875839276,-500.0,0.00027397,2]
[322213022,1712875839286,-500.0,0.00027397,2]
[322213023,1712875839295,-695.06,0.00027397,2]
[322213024,1712875839305,-500.0,0.00027397,2]
[322213025,1712875839314,-500.0,0.00027397,2]
[322213026,1712875839323,-500.0,0.00027397,2]
[322213027,1712875839333,-1856.6,0.00027397,2]
[322213028,1712875839342,-500.0,0.00027397,2]
[322213029,1712875839352,-500.0,0.00027397,2]
[322213031,1712875839362,-500.0,0.00027397,2]
[322213033,1712875839372,-500.0,0.00027397,2]
[322213035,1712875839382,-500.0,0.00027397,2]
[322213037,1712875839392,-500.0,0.00027397,2]
[322213039,1712875839401,-500.0,0.00027397,2]
[322213041,1712875839410,-512.3,0.00027397,2]
[322213043,1712875839419,-500.0,0.00027397,2]
[322213045,1712875839428,-500.0,0.00027397,2]
[322213047,1712875839438,-500.0,0.00027397,2]
[322213049,1712875839447,-500.0,0.00027397,2]
[322213051,1712875839456,-500.0,0.00027397,2]
[322213053,1712875839467,-500.0,0.00027397,2]
[322213055,1712875839477,-500.0,0.00027397,2]
[322213057,1712875839486,-552.55,0.00027397,2]
[322213059,1712875839495,-613.18,0.00027397,2]
[322213061,1712875839504,-500.0,0.00027397,2]
[322213063,1712875839514,-172.94391221,0.00027397,2]
[322213065,1712875839524,-500.0,0.00027397,2]
[322213067,1712875839532,-500.0,0.00027397,2]
[322213069,1712875839542,-1527.21,0.00027397,2]
[322213071,1712875839552,-1277.44,0.00027397,2]
[322213073,1712875839561,-500.0,0.00027397,2]
[322213075,1712875839570,-500.0,0.00027397,2]
[322213077,1712875839579,-598.95,0.00027397,2]
[322213079,1712875839589,-500.0,0.00027397,2]
[322213081,1712875839598,-695.93,0.00027397,2]
[322213083,1712875839607,-500.0,0.00027397,2]
[322213085,1712875839616,-500.0,0.00027397,2]
[322213087,1712875839626,-1051.21,0.00027397,2]
[322213089,1712875839635,-500.0,0.00027397,2]
[322213091,1712875839645,-500.0,0.00027397,2]
[322213093,1712875839654,-500.0,0.00027397,2]
[322213095,1712875839663,-500.0,0.00027397,2]
[322213097,1712875839673,-500.0,0.00027397,2]
[322213099,1712875839682,-500.0,0.00027397,2]
[322213101,1712875839692,-500.0,0.00027397,2]
[322213103,1712875839701,-732.24,0.00027397,2]
[322213105,1712875839710,-500.0,0.00027397,2]
[322213107,1712875839719,-500.0,0.00027397,2]
[322213109,1712875839729,-500.0,0.00027397,2]
[322213111,1712875839739,-500.0,0.00027397,2]
[322213113,1712875839748,-590.26017285,0.00027397,2]
[322213115,1712875839757,-764.6,0.00027397,2]
[322213117,1712875839766,-500.0,0.00027397,2]
[322213119,1712875839776,-1325.52,0.00027397,2]
[322213121,1712875839785,-917.8,0.00027397,2]
[322213123,1712875839794,-540.64,0.00027397,2]
[322213125,1712875839804,-500.0,0.00027397,2]
[322213127,1712875839813,-500.0,0.00027397,2]
[322213129,1712875839822,-500.0,0.00027397,2]
[322213130,1712875839832,-500.0,0.00027397,2]
[322213133,1712875839842,-500.0,0.00027397,2]
[322213135,1712875839851,-500.0,0.00027397,2]
[322213138,1712875839861,-500.0,0.00027397,2]
[322213139,1712875839870,-500.0,0.00027397,2]
[322213142,1712875839880,-500.0,0.00027397,2]
[322213144,1712875839889,-500.0,0.00027397,2]
[322213146,1712875839898,-500.0,0.00027397,2]
[322213148,1712875839908,-1135.46,0.00027397,2]
[322213150,1712875839917,-500.0,0.00027397,2]
[322213152,1712875839927,-14806.5,0.00027397,2]
[322213155,1712875839936,-1184.13,0.00027397,2]
[322213157,1712875839945,-500.0,0.00027397,2]
[322213159,1712875839954,-862.64,0.00027397,2]
[322213161,1712875839963,-745.22,0.00027397,2]
[322213163,1712875839972,-500.0,0.00027397,2]
[322213165,1712875839982,-500.0,0.00027397,2]
[322213167,1712875839990,-3003.28,0.00027397,2]
[322213169,1712875839999,-500.0,0.00027397,2]
[322213171,1712875840009,-500.0,0.00027397,2]
[322213173,1712875840017,-511.67115905,0.00027397,2]
[322213175,1712875840026,-500.0,0.00027397,2]
[322213177,1712875840035,-500.0,0.00027397,2]
[322213179,1712875840044,-500.0,0.00027397,2]
[322213181,1712875840057,-2133.79,0.00027397,2]
[322213183,1712875840066,-500.0,0.00027397,2]
[322213185,1712875840075,-500.0,0.00027397,2]
[322213187,1712875840085,-1412.3,0.00027397,2]
[322213188,1712875840095,-4683.06,0.00027397,2]
[322213190,1712875840104,-6060.69,0.00027397,2]
[322213191,1712875840115,-500.0,0.00027397,2]
[322213192,1712875840124,-500.0,0.00027397,2]
[322213193,1712875840133,-1319.95,0.00027397,2]
[322213194,1712875840142,-500.0,0.00027397,2]
[322213195,1712875840152,-500.0,0.00027397,2]
[322213196,1712875840163,-500.0,0.00027397,2]
[322213197,1712875840175,-500.0,0.00027397,2]
[322213198,1712875840185,-11873.43,0.00027397,2]
[322213199,1712875840194,-500.0,0.00027397,2]
[322213200,1712875840204,-1103.0,0.00027397,2]
[322213202,1712875840215,-500.0,0.00027397,2]
[322213204,1712875840224,-500.0,0.00027397,2]
[322213205,1712875840234,-500.0,0.00027397,2]
[322213207,1712875840244,-500.0,0.00027397,2]
[322213208,1712875840254,-500.0,0.00027397,2]
[322213210,1712875840264,-500.0,0.00027397,2]
[322213211,1712875840275,-565.65845339,0.00027397,2]
[322213212,1712875840285,-1162.96,0.00027397,2]
[322213213,1712875840294,-500.0,0.00027397,2]
[322213214,1712875840306,-763.75,0.00027397,2]
[322213215,1712875840316,-2746.2,0.00027397,2]
[322213216,1712875840325,-502.78102773,0.00027397,2]
[322213217,1712875840334,-513.31933967,0.00027397,2]
[322213218,1712875840342,-1602.07,0.00027397,2]
[322213219,1712875840352,-500.0,0.00027397,2]
[322213220,1712875840363,-500.0,0.00027397,2]
[322213222,1712875840372,-2354.74,0.00027397,2]
[322213223,1712875840382,-500.0,0.00027397,2]
[322213224,1712875840393,-1495.89,0.00027397,2]
[322213225,1712875840402,-507.05941303,0.00027397,2]
[322213226,1712875840411,-400.0,0.00027397,2]
[322213227,1712875840420,-166.666666,0.00027397,2]
[322213228,1712875840430,-158.57133417,0.00027434,2]
[322213229,1712875840439,-2000.0,0.00027571,2]
[322213230,1712875840449,-158.57133417,0.00027571,2]
[322213231,1712875840458,-164.33672125,0.00027665,3]
[322213232,1712875840468,-1308.15892502,0.00027669,2]
[322213233,1712875840478,-221.63830907,0.0002767,2]
[322213234,1712875840487,-211.40870572,0.0002767,2]
[322213235,1712875840577,-303.42336337,0.0002767,2]
[322213236,1712875840587,-490.67957045,0.0002767,2]
[322213237,1712875840596,-476.99145906,0.0002767,2]
[322213238,1712875840606,-500.0,0.0002767,2]
[322213239,1712875840615,-500.0,0.0002767,2]
[322213240,1712875840624,-478.30476611,0.00027671,2]
[322213241,1712875840633,-500.0,0.00027671,2]
[322213242,1712875840642,-500.0,0.00027671,2]
[322213243,1712875840652,-727.6,0.00027671,2]
[322213244,1712875840661,-576.3008286,0.00027671,2]
[322213245,1712875840670,-695.06,0.00027671,2]
[322213246,1712875840679,-500.0,0.00027671,2]
[322213247,1712875840687,-500.0,0.00027671,2]
[322213248,1712875840697,-500.0,0.00027671,2]
[322213249,1712875840706,-1856.6,0.00027671,2]
[322213250,1712875840715,-500.0,0.00027671,2]
[322213251,1712875840724,-500.0,0.00027671,2]
[322213252,1712875840734,-500.0,0.00027671,2]
[322213253,1712875840744,-500.0,0.00027671,2]
[322213254,1712875840754,-538.61504777,0.00027671,2]
[322213255,1712875840763,-500.0,0.00027671,2]
[322213256,1712875840772,-512.3,0.00027671,2]
[322213257,1712875840781,-500.0,0.00027671,2]
[322213258,1712875840791,-500.0,0.00027671,2]
[322213259,1712875840800,-500.0,0.00027671,2]
[322213260,1712875840811,-500.0,0.00027671,2]
[322213261,1712875840820,-500.0,0.00027671,2]
[322213262,1712875840829,-500.0,0.00027671,2]
[322213263,1712875840838,-552.55,0.00027671,2]
[322213264,1712875840847,-613.18,0.00027671,2]
[322213265,1712875840856,-500.0,0.00027671,2]
[322213266,1712875840866,-500.0,0.00027671,2]
[322213267,1712875840876,-500.0,0.00027671,2]
[322213268,1712875840885,-1527.21,0.00027671,2]
[322213269,1712875840894,-1277.44,0.00027671,2]
[322213270,1712875840903,-500.0,0.00027671,2]
[322213271,1712875840913,-393.75733556,0.00027671,2]
[322213272,1712875840922,-598.95,0.00027671,2]
[322213273,1712875840932,-500.0,0.00027671,2]
[322213274,1712875840940,-695.93,0.00027671,2]
[322213275,1712875840950,-500.0,0.00027671,2]
[322213276,1712875840959,-173.19220258,0.00027671,2]
[322213277,1712875840969,-1051.21,0.00027671,2]
[322213278,1712875840979,-500.0,0.00027671,2]
[322213279,1712875840989,-500.0,0.00027671,2]
[322213280,1712875840999,-199.06636884,0.00027671,2]
[322213281,1712875841009,-500.0,0.00027671,2]
[322213282,1712875841018,-500.0,0.00027671,2]
[322213283,1712875841027,-501.6139725,0.00027671,2]
[322213284,1712875841036,-732.24,0.00027671,2]
[322213285,1712875841045,-500.0,0.00027671,2]
[322213286,1712875841055,-500.0,0.00027671,2]
[322213287,1712875841064,-500.0,0.00027671,2]
[322213288,1712875841073,-500.0,0.00027671,2]
[322213289,1712875841083,-764.6,0.00027671,2]
[322213290,1712875841093,-1325.52,0.00027671,2]
[322213291,1712875841104,-917.8,0.00027671,2]
[322213292,1712875841114,-540.64,0.00027671,2]
[322213293,1712875841125,-500.0,0.00027671,2]
[322213294,1712875841135,-500.0,0.00027671,2]
[322213295,1712875841145,-500.0,0.00027671,2]
[322213296,1712875841156,-500.0,0.00027671,2]
[322213297,1712875841170,-500.0,0.00027671,2]
[322213298,1712875841180,-505.15384596,0.00027671,2]
[322213299,1712875841190,-500.0,0.00027671,2]
[322213300,1712875841199,-500.0,0.00027671,2]
[322213301,1712875841211,-1135.46,0.00027671,2]
[322213302,1712875841220,-500.0,0.00027671,2]
[322213303,1712875841230,-8366.1475164,0.00027671,2]
[322213304,1712875841246,-6440.3524836,0.00027671,2]
[322213305,1712875841256,-1184.13,0.00027671,2]
[322213306,1712875841265,-500.0,0.00027671,2]
[322213307,1712875841274,-862.64,0.00027671,2]
[322213308,1712875841284,-745.22,0.00027671,2]